fUST/lending_fUST_20250419
["ID","MTS","AMOUNT","RATE_DAILY","PERIOD"]
[358362936,1744996243019,-503.71253093,0.00021917,2]
[358362939,1744996243028,-501.68955736,0.00021917,2]
[358362941,1744996243037,-500.0,0.00021917,2]
[358362943,1744996243047,-500.0,0.00021917,2]
[358362945,1744996243057,-574.36947783,0.00021917,2]
[358362947,1744996243066,-500.0,0.00021917,2]
[358362949,1744996243076,-500.0,0.00021917,2]
[358362951,1744996243085,-500.0,0.00021917,2]
[358362953,1744996243095,-608.02,0.00021917,2]
[358362955,1744996243104,-500.0,0.00021917,2]
[358362958,1744996243114,-519.82968034,0.00021917,2]
[358362961,1744996243123,-500.0,0.00021917,2]
[358362964,1744996243132,-500.0,0.00021917,2]
[358362967,1744996243142,-500.0,0.00021917,2]
[358362969,1744996243150,-500.0,0.00021917,2]
[358362971,1744996243159,-868.0,0.00021917,2]
[358362973,1744996243168,-500.0,0.00021917,2]
[358362975,1744996243177,-500.0,0.00021917,2]
[358362977,1744996243187,-500.58,0.00021917,2]
[358362979,1744996243196,-500.0,0.00021917,2]
[358362981,1744996243205,-500.0,0.00021917,2]
[358362983,1744996243214,-1148.63,0.00021917,2]
[358362985,1744996243223,-500.0,0.00021917,2]
[358362987,1744996243235,-500.0,0.00021917,2]
[358362989,1744996243244,-616.97023782,0.00021917,2]
[358362991,1744996243253,-1019.59,0.00021917,2]
[358362993,1744996243262,-500.0,0.00021917,2]
[358362995,1744996243272,-500.0,0.00021917,2]
[358362997,1744996243284,-500.0,0.00021917,2]
[358362999,1744996243293,-500.0,0.00021917,2]
[358363001,1744996243303,-500.0,0.00021917,2]
[358363002,1744996243312,-500.0,0.00021917,2]
[358363004,1744996243321,-500.0,0.00021917,2]
[358363006,1744996243331,-562.6653896,0.00021917,2]
[358363008,1744996243340,-500.0,0.00021917,2]
[358363010,1744996243350,-816.31,0.00021917,2]
[358363012,1744996243359,-1487.14,0.00021917,2]
[358363014,1744996243368,-500.0,0.00021917,2]
[358363016,1744996243377,-500.0,0.00021917,2]
[358363018,1744996243386,-500.0,0.00021917,2]
[358363020,1744996243395,-500.0,0.00021917,2]
[358363022,1744996243404,-500.0,0.00021917,2]
[358363024,1744996243413,-549.16,0.00021917,2]
[358363026,1744996243423,-500.0,0.00021917,2]
[358363028,1744996243432,-966.84,0.00021917,2]
[358363030,1744996243441,-948.98,0.00021917,2]
[358363032,1744996243450,-539.81,0.00021917,2]
[358363034,1744996243460,-525.88,0.00021917,2]
[358363036,1744996243469,-500.0,0.00021917,2]
[358363038,1744996243478,-500.0,0.00021917,2]
[358363040,1744996243488,-500.0,0.00021917,2]
[358363042,1744996243497,-500.0,0.00021917,2]
[358363044,1744996243508,-500.0,0.00021917,2]
[358363046,1744996243517,-545.31,0.00021917,2]
[358363048,1744996243527,-500.0,0.00021917,2]
[358363064,1744996243665,-1063.55,0.00021917,2]
[358363066,1744996243675,-500.0,0.00021917,2]
[358363068,1744996243684,-500.0,0.00021917,2]
[358363070,1744996243693,-500.0,0.00021917,2]
[358363072,1744996243703,-500.0,0.00021917,2]
[358363074,1744996243712,-500.0,0.00021917,2]
[358363076,1744996243721,-503.82267356,0.00021917,2]
[358363078,1744996243731,-500.0,0.00021917,2]
[358363080,1744996243740,-500.0,0.00021917,2]
[358363082,1744996243749,-476.39772959,0.00021917,2]
[358363083,1744996243758,-574.08,0.00021917,2]
[358363086,1744996243768,-797.35,0.00021917,2]
[358363087,1744996243777,-500.0,0.00021917,2]
[358363089,1744996243786,-500.0,0.00021917,2]
[358363091,1744996243796,-1104.07,0.00021917,2]
[358363093,1744996243805,-500.0,0.00021917,2]
[358363095,1744996243814,-500.0,0.00021917,2]
[358363097,1744996243824,-500.0,0.00021917,2]
[358363099,1744996243833,-502.7196985,0.00021917,2]
[358363101,1744996243842,-530.11,0.00021917,2]
[358363103,1744996243851,-500.0,0.00021917,2]
[358363105,1744996243861,-500.0,0.00021917,2]
[358363107,1744996243870,-500.0,0.00021917,2]
[358363109,1744996243880,-195.802644,0.00021917,2]
[358363111,1744996243889,-500.0,0.00021917,2]
[358363113,1744996243898,-500.0,0.00021917,2]
[358363115,1744996243907,-367.74036165,0.00021917,2]
[358363117,1744996243920,-500.0,0.00021917,2]
[358363119,1744996243929,-500.0,0.00021917,2]
[358363121,1744996243939,-500.0,0.00021917,2]
[358363123,1744996243948,-511.84,0.00021917,2]
[358363125,1744996243958,-500.0,0.00021917,2]
[358363127,1744996243967,-500.0,0.00021917,2]
[358363129,1744996243977,-500.0,0.00021917,2]
[358363131,1744996243986,-1303.91,0.00021917,2]
[358363133,1744996243995,-500.0,0.00021917,2]
[358363135,1744996244004,-500.0,0.00021917,2]
[358363137,1744996244014,-3068.11,0.00021917,2]
[358363139,1744996244024,-500.0,0.00021917,2]
[358363141,1744996244033,-500.0,0.00021917,2]
[358363144,1744996244043,-500.0,0.00021917,2]
[358363145,1744996244052,-972.81,0.00021917,2]
[358363148,1744996244061,-1669.16,0.00021917,2]
[358363150,1744996244071,-500.0,0.00021917,2]
[358363152,1744996244080,-605.47575831,0.00021917,2]
[358363153,1744996244089,-247.43169583,0.00021917,2]
[358363155,1744996244099,-500.0,0.00021917,2]
[358363157,1744996244109,-711.99,0.00021917,2]
[358363159,1744996244118,-500.0,0.00021917,2]
[358363162,1744996244128,-500.0,0.00021917,2]
[358363164,1744996244138,-509.5,0.00021917,2]
[358363165,1744996244147,-1144.29,0.00021917,2]
[358363168,1744996244157,-702.89,0.00021917,2]
[358363170,1744996244167,-1059.44,0.00021917,2]
[358363172,1744996244176,-500.0,0.00021917,2]
[358363173,1744996244185,-920.81,0.00021917,2]
[358363175,1744996244195,-524.74522519,0.00021917,2]
[358363177,1744996244204,-500.0,0.00021917,2]
[358363179,1744996244213,-500.0,0.00021917,2]
[358363181,1744996244223,-502.47208921,0.00021917,2]
[358363183,1744996244231,-501.65703613,0.00021917,2]
[358363185,1744996244241,-500.0,0.00021917,2]
[358363187,1744996244251,-500.0,0.00021917,2]
[358363189,1744996244260,-650.44,0.00021917,2]
[358363191,1744996244270,-500.0,0.00021917,2]
[358363193,1744996244283,-500.0,0.00021917,2]
[358363196,1744996244292,-500.0,0.00021917,2]
[358363198,1744996244302,-764.62,0.00021917,2]
[358363200,1744996244312,-602.06,0.00021917,2]
[358363202,1744996244322,-605.99,0.00021917,2]
[358363203,1744996244331,-643.03,0.00021917,2]
[358363205,1744996244339,-500.0,0.00021917,2]
[358363207,1744996244350,-500.0,0.00021917,2]
[358363209,1744996244359,-503.97056421,0.00021917,2]
[358363211,1744996244369,-636.26,0.00021917,2]
[358363213,1744996244378,-717.58,0.00021917,2]
[358363215,1744996244387,-503.40242682,0.00021917,2]
[358363217,1744996244396,-500.0,0.00021917,2]
[358363219,1744996244405,-500.0,0.00021917,2]
[358363221,1744996244414,-500.0,0.00021917,2]
[358363223,1744996244424,-117.05909551,0.00021917,2]
[358363240,1744996244655,-382.94090449,0.00021917,2]
[358363241,1744996244665,-500.0,0.00021917,2]
[358363242,1744996244675,-267.66152864,0.00021917,2]
[358363243,1744996244686,-232.33847136,0.00021917,2]
[358363244,1744996244694,-500.0,0.00021917,2]
[358363245,1744996244703,-578.29,0.00021917,2]
[358363246,1744996244712,-288.50288315,0.00021917,2]
[358363248,1744996244725,-569.72711685,0.00021917,2]
[358363250,1744996244736,-753.75,0.00021917,2]
[358363252,1744996244745,-500.0,0.00021917,2]
[358363254,1744996244754,-151.0,0.00021917,2]
[358363256,1744996244763,-151.0,0.00021917,2]
[358363258,1744996244773,-151.0,0.00021917,2]
[358363260,1744996244783,-502.93607963,0.00021917,2]
[358363262,1744996244792,-151.0,0.00021917,2]
[358363264,1744996244801,-593.65,0.00021917,2]
[358363266,1744996244811,-55.66427931,0.00021917,2]
[358363268,1744996244823,-180.33572069,0.00021917,2]
[358363270,1744996244832,-500.0,0.00021917,2]
[358363272,1744996244842,-273.86971767,0.00021917,2]
[358363274,1744996244852,-231.30601332,0.00021917,2]
[358363276,1744996244860,-876.53,0.00021917,2]
[358363278,1744996244870,-732.57,0.00021917,2]
[358363280,1744996244878,-158.08578364,0.00021917,2]
[358363293,1744996244994,-341.91421636,0.00021917,2]
[358363295,1744996245003,-500.0,0.00021917,2]
[358363297,1744996245013,-231.89758643,0.00021917,2]
[358363300,1744996245024,-257.37999984,0.00021917,2]
[358363331,1744996245324,-177.38996013,0.00021916,2]
[358363333,1744996245333,-16.87561799,0.00021917,2]
[358363335,1744996245342,-500.0,0.00021917,2]
[358363337,1744996245351,-248.83057407,0.00021917,2]
[358363340,1744996245367,-251.16942593,0.00021917,2]
[358363342,1744996245377,-934.22,0.00021917,2]
[358363344,1744996245386,-13.26703733,0.00021917,2]
[358363346,1744996245398,-486.73296267,0.00021917,2]
[358363348,1744996245408,-195.28929728,0.00021917,2]
[358363351,1744996245420,-794.16791577,0.00021917,2]
[358363474,1744996246588,-177.38996013,0.00021916,2]
[358363476,1744996246598,-2008.04184987,0.00021917,2]
[358363481,1744996246641,-1555.14093708,0.00021917,2]
[358363484,1744996246654,-500.0,0.00021917,2]
[358363486,1744996246664,-505.3275433,0.00021917,2]
[358363488,1744996246673,-500.0,0.00021917,2]
[358363490,1744996246682,-502.10618709,0.00021917,2]
[358363492,1744996246692,-500.0,0.00021917,2]
[358363494,1744996246701,-555.33,0.00021917,2]
[358363496,1744996246711,-559.02,0.00021917,2]
[358363498,1744996246721,-500.0,0.00021917,2]
[358363500,1744996246729,-500.0,0.00021917,2]
[358363501,1744996246739,-502.11,0.00021917,2]
[358363503,1744996246749,-500.0,0.00021917,2]
[358363505,1744996246758,-500.0,0.00021917,2]
[358363508,1744996246768,-500.0,0.00021917,2]
[358363510,1744996246778,-528.10072943,0.00021917,2]
[358363512,1744996246787,-819.71,0.00021917,2]
[358363514,1744996246796,-500.0,0.00021917,2]
[358363515,1744996246806,-892.21,0.00021917,2]
[358363518,1744996246815,-503.73291085,0.00021917,2]
[358363520,1744996246825,-507.45102819,0.00021917,2]
[358363521,1744996246835,-1427.53,0.00021917,2]
[358363523,1744996246843,-500.0,0.00021917,2]
[358363525,1744996246853,-500.0,0.00021917,2]
[358363542,1744996246996,-501.44596358,0.00021917,2]
[358363544,1744996247007,-500.0,0.00021917,2]
[358363546,1744996247016,-500.0,0.00021917,2]
[358363548,1744996247025,-503.75650007,0.00021917,2]
[358363550,1744996247035,-501.02370071,0.00021917,2]
[358363552,1744996247044,-160.895195,0.00021917,2]
[358363554,1744996247053,-232.8346256,0.00021917,2]
[358363556,1744996247062,-160.895195,0.00021917,2]
[358363558,1744996247072,-500.0,0.00021917,2]
[358363559,1744996247082,-160.895195,0.00021917,2]
[358363561,1744996247091,-160.895195,0.00021917,2]
[358363563,1744996247101,-160.895195,0.00021917,2]
[358363565,1744996247110,-500.0,0.00021917,2]
[358363567,1744996247120,-160.895195,0.00021917,2]
[358363569,1744996247129,-160.895195,0.00021917,2]
[358363571,1744996247139,-160.895195,0.00021917,2]
[358363574,1744996247150,-364.80084165,0.00021917,2]
[358363576,1744996247163,-135.19915835,0.00021917,2]
[358363578,1744996247173,-506.35143518,0.00021917,2]
[358363580,1744996247182,-148.34940639,0.00021917,2]
[358366564,1744996362153,425.41248627,0.00017915,2]
[358366565,1744996374893,1000.0,0.0001792,2]
[358366566,1744996501717,1451.16432839,0.00018,2]
[358366567,1744996521958,473.508854,0.00017269,2]
[358366571,1744996640503,150.81784098,0.00018,2]
[358366572,1744996808875,255.0,0.00018007,2]
[358366576,1744997013114,198.0648532,0.00017902,2]
[358366589,1744997194648,-300.0,0.00018012,2]
[358366590,1744997194673,-47.53830674,0.00018012,2]
[358366591,1744997225900,-214.10012161,0.00018011,2]
[358366602,1744997282275,-288.95774884,0.00018011,2]
[358366603,1744997311807,-11.04225116,0.00018011,2]
[358366604,1744997311832,-282.56365612,0.00018011,2]
[358366605,1744997331601,208.8469946,0.00017932,2]
[358366606,1744997332590,-17.43634388,0.00018011,2]
[358366607,1744997332616,-195.77965248,0.00018011,2]
[358366608,1744997342935,300.0,0.0001801,2]
[358366609,1744997343560,-179.32754799,0.00018011,2]
[358366622,1744997388702,250.0,0.00017931,2]
[358366626,1744997402360,300.0,0.0001801,2]
[358366627,1744997405849,300.0,0.0001801,2]
[358366628,1744997414567,300.0,0.0001801,2]
[358366644,1744997432591,-338.8554919,0.0001801,2]
[358366645,1744997432601,-177.33009483,0.0001801,2]
[358366646,1744997432611,-500.0,0.00018011,2]
[358366647,1744997432620,-500.0,0.00018011,2]
[358366648,1744997432629,-169.10430936,0.00018011,2]
[358366649,1744997432647,-330.89569064,0.00018011,2]
[358366650,1744997432656,-500.0,0.00018011,2]
[358366651,1744997432665,-500.0,0.00018011,2]
[358366652,1744997432674,-500.0,0.00018011,2]
[358366653,1744997432684,-500.0,0.00018011,2]
[358366654,1744997432693,-500.0,0.00018011,2]
[358366655,1744997432702,-500.0,0.00018011,2]
[358366656,1744997432711,-500.0,0.00018011,2]
[358366657,1744997432721,-171.17983099,0.00018011,2]
[358366659,1744997432758,-328.82016901,0.00018011,2]
[358366660,1744997432767,-500.0,0.00018011,2]
[358366662,1744997432777,-500.0,0.00018011,2]
[358366663,1744997432786,-262.68486365,0.00018011,2]
[358366664,1744997432795,-500.0,0.00018011,2]
[358366665,1744997432805,-500.0,0.00018011,2]
[358366666,1744997432814,-354.1873836,0.00018011,2]
[358366667,1744997432824,-500.0,0.00018011,2]
[358366668,1744997432834,-500.0,0.00018011,2]
[358366669,1744997432844,-500.0,0.00018011,2]
[358366670,1744997432853,-500.0,0.00018011,2]
[358366671,1744997432862,-500.0,0.00018011,2]
[358366672,1744997432871,-500.0,0.00018011,2]
[358366673,1744997432880,-500.0,0.00018011,2]
[358366674,1744997432889,-500.0,0.00018011,2]
[358366675,1744997432899,-500.0,0.00018011,2]
[358366676,1744997432908,-500.0,0.00018011,2]
[358366677,1744997432917,-500.0,0.00018011,2]
[358366678,1744997432927,-500.0,0.00018011,2]
[358366679,1744997432936,-500.0,0.00018011,2]
[358366680,1744997432945,-500.0,0.00018011,2]
[358366681,1744997432955,-500.0,0.00018011,2]
[358366682,1744997432964,-500.0,0.00018011,2]
[358366683,1744997432974,-500.0,0.00018011,2]
[358366684,1744997432983,-500.0,0.00018011,2]
[358366685,1744997432993,-500.0,0.00018011,2]
[358366686,1744997433003,-500.0,0.00018011,2]
[358366687,1744997433013,-500.0,0.00018011,2]
[358366688,1744997433023,-500.0,0.00018011,2]
[358366689,1744997433032,-500.0,0.00018011,2]
[358366690,1744997433041,-500.0,0.00018011,2]
[358366691,1744997433051,-500.0,0.00018011,2]
[358366692,1744997433060,-615.38287398,0.00018011,2]
[358366693,1744997433070,-615.38287398,0.00018011,2]
[358366694,1744997433079,-615.38287398,0.00018011,2]
[358366695,1744997433089,-615.38287398,0.00018011,2]
[358366696,1744997433098,-615.38287398,0.00018011,2]
[358366697,1744997433107,-615.38287398,0.00018011,2]
[358366698,1744997433118,-615.38287398,0.00018011,2]
[358366699,1744997433127,-615.38287398,0.00018011,2]
[358366700,1744997433137,-615.38287398,0.00018011,2]
[358366701,1744997433146,-615.38287398,0.00018011,2]
[358366702,1744997433155,-615.38287398,0.00018011,2]
[358366703,1744997433165,-615.38287398,0.00018011,2]
[358366704,1744997433175,-615.38287398,0.00018011,2]
[358366705,1744997433184,-615.38287398,0.00018011,2]
[358366706,1744997433193,-615.38287398,0.00018011,2]
[358366707,1744997433203,-615.38287398,0.00018011,2]
[358366708,1744997433214,-615.38287398,0.00018011,2]
[358366709,1744997433223,-615.38287398,0.00018011,2]
[358366710,1744997433232,-615.38287398,0.00018011,2]
[358366711,1744997433241,-615.38287398,0.00018011,2]
[358366712,1744997433251,-615.38287398,0.00018011,2]
[358366713,1744997433260,-615.38287398,0.00018011,2]
[358366714,1744997433270,-615.38287398,0.00018011,2]
[358366715,1744997433279,-615.38287398,0.00018011,2]
[358366716,1744997433288,-615.38287398,0.00018011,2]
[358366717,1744997433298,-615.38287398,0.00018011,2]
[358366718,1744997433307,-615.38287398,0.00018011,2]
[358366719,1744997433316,-615.38287398,0.00018011,2]
[358366720,1744997433326,-615.38287398,0.00018011,2]
[358366721,1744997433336,-615.38287398,0.00018011,2]
[358366722,1744997433346,-615.38287398,0.00018011,2]
[358366723,1744997433355,-615.38287398,0.00018011,2]
[358366724,1744997433364,-615.38287398,0.00018011,2]
[358366725,1744997433373,-615.38287398,0.00018011,2]
[358366726,1744997433383,-615.38287398,0.00018011,2]
[358366727,1744997433392,-615.38287398,0.00018011,2]
[358366728,1744997433402,-98.06621613,0.00018011,2]
[358366729,1744997433414,-517.31665785,0.00018011,2]
[358366730,1744997433423,-615.38287398,0.00018011,2]
[358366731,1744997433433,-588.45987325,0.00018011,2]
[358366732,1744997433443,-588.45987325,0.00018011,2]
[358366733,1744997433452,-588.45987325,0.00018011,2]
[358366734,1744997433462,-588.45987325,0.00018011,2]
[358366735,1744997433471,-588.45987325,0.00018011,2]
[358366736,1744997433481,-588.45987325,0.00018011,2]
[358366737,1744997433491,-588.45987325,0.00018011,2]
[358366738,1744997433500,-588.45987325,0.00018011,2]
[358366739,1744997433509,-588.45987325,0.00018011,2]
[358366740,1744997433519,-588.45987325,0.00018011,2]
[358366741,1744997433529,-588.45987325,0.00018011,2]
[358366742,1744997433538,-588.45987325,0.00018011,2]
[358366743,1744997433548,-588.45987325,0.00018011,2]
[358366744,1744997433558,-588.45987325,0.00018011,2]
[358366745,1744997433567,-588.45987325,0.00018011,2]
[358366746,1744997433577,-588.45987325,0.00018011,2]
[358366747,1744997433586,-273.74,0.00018012,2]
[358366748,1744997433595,-500.0,0.000181,2]
[358366749,1744997433604,-455.206131,0.000181,2]
[358366750,1744997433614,-500.0,0.000181,2]
[358366751,1744997433623,-500.0,0.000181,2]
[358366752,1744997433633,-500.0,0.000181,2]
[358366753,1744997433643,-500.0,0.000181,2]
[358366754,1744997433653,-500.0,0.000181,2]
[358366755,1744997433662,-500.0,0.000181,2]
[358366756,1744997433672,-500.0,0.000181,2]
[358366757,1744997433681,-500.0,0.000181,2]
[358366758,1744997433691,-536.11157554,0.000181,2]
[358366759,1744997433700,-500.0,0.000181,2]
[358366760,1744997433710,-500.0,0.000181,2]
[358366761,1744997433719,-622.30459755,0.000181,2]
[358366762,1744997433729,-500.0,0.000181,2]
[358366763,1744997433740,-500.0,0.000181,2]
[358366764,1744997433753,-500.0,0.000181,2]
[358366765,1744997433763,-500.0,0.000181,2]
[358366766,1744997433773,-500.0,0.000181,2]
[358366767,1744997433783,-500.0,0.000181,2]
[358366768,1744997433792,-500.0,0.000181,2]
[358366769,1744997433802,-502.60416933,0.000181,2]
[358366770,1744997433811,-500.0,0.00018125,2]
[358366771,1744997433821,-500.66785231,0.00018125,2]
[358366772,1744997433831,-500.0,0.00018125,2]
[358366773,1744997433840,-500.0,0.00018125,2]
[358366774,1744997433850,-500.0,0.00018125,2]
[358366775,1744997433859,-500.0,0.00018125,2]
[358366776,1744997433868,-500.0,0.00018125,2]
[358366777,1744997433877,-500.0,0.00018125,2]
[358366778,1744997433887,-500.0,0.00018125,2]
[358366779,1744997433896,-500.0,0.00018125,2]
[358366780,1744997433906,-500.0,0.00018125,2]
[358366781,1744997433915,-500.0,0.00018125,2]
[358366782,1744997433925,-571.73651187,0.00018125,2]
[358366783,1744997433935,-924.6145967,0.00018224,2]
[358366784,1744997433946,-428.92582708,0.000189,2]
[358366785,1744997433955,-162.1037472,0.00018904,2]
[358366786,1744997433965,-300.0,0.00019178,2]
[358366787,1744997433974,-1785.9526339,0.00019281,2]
[358366788,1744997433984,-1714.9150212,0.00019418,2]
[358366789,1744997433994,-24900.0,0.00019418,2]
[358366790,1744997434003,-292.7475352,0.00019542,2]
[358366791,1744997434013,-2726.8656169,0.00019545,2]
[358366792,1744997434023,-420.0,0.00019651,2]
[358366793,1744997434032,-288.7698945,0.00019655,2]
[358366794,1744997434041,-278.42515867,0.00019782,2]
[358366832,1744997439338,-141.57484133,0.00019782,2]
[358366833,1744997439348,-1255.21392132,0.000199,2]
[358366834,1744997439358,-159.435122,0.00020063,2]
[358366835,1744997439368,-160.0,0.00020076,2]
[358366836,1744997439377,-420.40766787,0.00020076,2]
[358366837,1744997439386,-160.0,0.00020076,2]
[358366838,1744997439396,-1255.21392124,0.00020797,3]
[358366839,1744997439405,-598.29,0.000208,2]
[358366840,1744997439414,-600.0,0.00020822,2]
[358366841,1744997439424,-186.946,0.00020847,2]
[358366842,1744997439433,-352.48608805,0.0002099,2]
[358366843,1744997439445,-71.7836263,0.0002099,2]
[358366844,1744997439455,-250.0,0.000212,2]
[358366845,1744997439465,-587.0,0.00021441,2]
[358366846,1744997439475,-279.850293,0.00021693,3]
[358366847,1744997439486,-975.36362824,0.00021693,3]
[358366848,1744997439496,-633.482347,0.00021697,2]
[358366849,1744997439505,-587.0,0.00021728,2]
[358366850,1744997439515,-513.61,0.00021792,15]
[358366851,1744997439524,-200.0,0.000218,2]
[358366852,1744997439534,-2718.6,0.00021817,2]
[358366853,1744997439544,-2718.6,0.00021817,2]
[358366854,1744997439554,-2718.6,0.00021817,2]
[358366855,1744997439563,-839.29847495,0.00021817,2]
[358366856,1744997439573,-160.0,0.00021817,2]
[358366857,1744997439582,-12559.7366029,0.00021823,2]
[358366858,1744997439591,-160.0,0.00021823,2]
[358366859,1744997439601,-151.0,0.00021826,120]
[358366860,1744997439610,-200.0,0.000219,2]
[358366861,1744997439620,-59343.15781071,0.00021914,2]
[358366862,1744997439632,-7908.899983,0.00021914,2]
[358366863,1744997439648,-9720.92830157,0.00021914,2]
[358366865,1744997440733,-25134.85480478,0.00021914,2]
[358366866,1744997440743,-151.0,0.00021914,2]
[358366867,1744997440756,-151.0,0.00021914,2]
[358366868,1744997440765,-151.0,0.00021914,2]
[358366869,1744997440774,-154.125743,0.00021914,2]
[358366870,1744997440783,-151.0,0.00021914,2]
[358366871,1744997440794,-151.0,0.00021914,2]
[358366872,1744997440803,-151.0,0.00021914,2]
[358366873,1744997440811,-151.0,0.00021914,2]
[358366874,1744997440821,-151.0,0.00021914,2]
[358366875,1744997440831,-151.0,0.00021914,2]
[358366876,1744997440842,-177.38996013,0.00021916,2]
[358366877,1744997440851,-13944.00795814,0.00021917,2]
[358366878,1744997440861,-5480.65284278,0.00021917,3]
[358366879,1744997440871,-500.0,0.00021917,2]
[358366880,1744997440880,-500.0,0.00021917,2]
[358366881,1744997440890,-428.55738684,0.00021917,2]
[358366882,1744997441000,-71.44261316,0.00021917,2]
[358366883,1744997441010,-500.0,0.00021917,2]
[358366884,1744997441019,-422.1260888,0.00021917,2]
[358366894,1744997443579,-177.38996013,0.00021916,2]
[358366895,1744997443590,-77.8739112,0.00021917,2]
[358366896,1744997443600,-500.0,0.00021917,2]
[358366897,1744997443610,-500.0,0.00021917,2]
[358366898,1744997443619,-500.0,0.00021917,2]
[358366899,1744997443629,-500.0,0.00021917,2]
[358366900,1744997443639,-500.0,0.00021917,2]
[358366901,1744997443648,-607.39903985,0.00021917,2]
[358366902,1744997443658,-462.33709019,0.00021917,2]
[358366903,1744997443675,-37.66290981,0.00021917,2]
[358366904,1744997443685,-500.0,0.00021917,2]
[358366905,1744997443695,-11.0159525,0.00021917,2]
[358366906,1744997446789,-177.38996013,0.00021916,2]
[358366907,1744997446800,-488.9840475,0.00021917,2]
[358366909,1744997446809,-500.0,0.00021917,2]
[358366910,1744997446821,-577.99,0.00021917,2]
[358366911,1744997446830,-500.0,0.00021917,2]
[358366912,1744997446840,-500.0,0.00021917,2]
[358366913,1744997446850,-854.31851321,0.00021917,2]
[358366915,1744997465532,-344.58837224,0.0001801,2]
[358366916,1744997482062,-155.41162776,0.0001801,2]
[358366917,1744997482085,-116.25391898,0.0001801,2]
[358366918,1744997495984,-300.0,0.0001801,2]
[358366919,1744997522977,300.0,0.00018009,2]
[358366920,1744997558783,-83.74608102,0.0001801,2]
[358366921,1744997558807,-202.2142393,0.0001801,2]
[358366922,1744997567224,300.0,0.00018009,2]
[358366923,1744997567252,200.0,0.00018009,2]
[358366924,1744997567281,500.0,0.00018009,2]
[358366925,1744997567313,156.56010388,0.00018009,2]
[358366926,1744997567342,500.0,0.00018009,2]
[358366927,1744997567375,500.0,0.00018009,2]
[358366928,1744997567418,500.0,0.00018009,2]
[358366929,1744997567448,500.0,0.00018009,2]
[358366930,1744997567491,500.0,0.00018009,2]
[358366931,1744997567520,409.45987502,0.00018009,2]
[358366932,1744997567560,510.75873018,0.00018009,2]
[358366933,1744997567589,500.0,0.00018009,2]
[358366934,1744997567648,500.0,0.00018009,2]
[358366935,1744997567720,500.0,0.00018009,2]
[358366936,1744997567762,500.0,0.00018009,2]
[358366937,1744997567801,500.0,0.00018009,2]
[358366938,1744997567835,500.0,0.00018009,2]
[358366939,1744997567874,500.0,0.00018009,2]
[358366940,1744997567902,500.0,0.00018009,2]
[358366941,1744997567946,500.0,0.00018009,2]
[358366942,1744997567976,500.0,0.00018009,2]
[358366943,1744997568028,500.0,0.00018009,2]
[358366944,1744997568060,500.0,0.00018009,2]
[358366945,1744997568103,500.0,0.00018009,2]
[358366946,1744997568144,500.0,0.00018009,2]
[358366947,1744997568176,500.0,0.00018009,2]
[358366948,1744997568205,500.0,0.00018009,2]
[358366949,1744997568248,500.0,0.00018009,2]
[358366950,1744997568280,500.0,0.00018009,2]
[358366951,1744997598809,300.0,0.00018009,2]
[358366959,1744997836699,500.0,0.00016,10]
[358366960,1744997864264,501.0,0.00016,10]